[Event "Veteran-SM 65+ 2025"]
[Site "Uppsala, Sweden"]
[Date "2025.06.30"]
[Round "3.8"]
[White "Hogberg, Thomas"]
[Black "Ranby, Hans"]
[Result "1-0"]
[TimeControl "90 min for 40 move + 30 min with an increment of 30 sec starting move 1"]
[WhiteFideId "1706039"]
[BlackFideId "1710311"]
[WhiteElo "1979"]
[BlackElo "1868"]

1. Nc3 {[%clk 01:30:28]} {[%emt 00:00:32]} c5 {[%clk 01:30:37]} {[%emt
00:00:24]} 2. Nf3 {[%clk 01:30:44]} {[%emt 00:00:14]} Nc6 {[%clk 01:30:51]}
{[%emt 00:00:15]} 3. d4 {[%clk 01:31:03]} {[%emt 00:00:12]} cxd4 {[%clk
01:31:08]} {[%emt 00:00:13]} 4. Nxd4 {[%clk 01:31:27]} {[%emt 00:00:06]} g6
{[%clk 01:30:46]} {[%emt 00:00:52]} 5. Bg5 {[%clk 01:28:35]} {[%emt 00:03:21]}
Bg7 {[%clk 01:30:35]} {[%emt 00:00:41]} 6. Ndb5 {[%clk 01:26:39]} {[%emt
00:02:26]} Nf6 {[%clk 01:24:42]} {[%emt 00:06:23]} 7. e3 {[%clk 01:24:06]}
{[%emt 00:03:05]} O-O {[%clk 01:23:50]} {[%emt 00:01:20]} 8. Be2 {[%clk
01:22:39]} {[%emt 00:01:57]} d6 {[%clk 01:22:10]} {[%emt 00:02:11]} 9. Qd2
{[%clk 01:21:33]} {[%emt 00:01:34]} Be6 {[%clk 01:19:40]} {[%emt 00:03:01]} 10.
h4 {[%clk 01:16:52]} {[%emt 00:05:11]} a6 {[%clk 01:16:28]} {[%emt 00:03:42]}
11. Nd4 {[%clk 01:16:58]} {[%emt 00:00:24]} Nxd4 {[%clk 01:15:45]} {[%emt
00:01:14]} 12. exd4 {[%clk 01:17:16]} {[%emt 00:00:12]} b5 {[%clk 01:09:30]}
{[%emt 00:06:45]} 13. a3 {[%clk 01:14:02]} {[%emt 00:03:44]} Rc8 {[%clk
01:04:28]} {[%emt 00:05:31]} 14. Bh6 {[%clk 01:06:04]} {[%emt 00:08:26]} Nd5
{[%clk 00:59:09]} 15. Ne4 {[%clk 00:53:47]} {[%emt 00:18:36]} Qb6 {[%clk
00:50:29]} 16. c3 {[%clk 00:52:26]} {[%emt 00:11:03]} a5 {[%clk 00:50:25]} 17.
h5 {[%clk 00:50:26]} {[%emt 00:03:04]} b4 {[%emt 00:04:55]} 18. hxg6 {[%clk
00:46:45]} {[%emt 00:01:45]} fxg6 {[%clk 00:45:05]} 19. Bxg7 {[%clk 00:45:52]}
{[%emt 00:05:13]} Kxg7 {[%clk 00:44:51]} 20. Qh6+ {[%clk 00:42:02]} {[%emt
00:05:04]} Kf7 {[%clk 00:45:00]} 21. Ng5+ {[%clk 00:42:23]} {[%emt 00:00:30]}
Kf6 {[%clk 00:44:16]} 22. Nxh7+ {[%clk 00:36:33]} {[%emt 00:07:35]} Kf7 {[%clk
00:44:01]} 23. Ng5+ {[%clk 00:36:54]} {[%emt 00:00:54]} Kf6 {[%clk 00:43:57]}
24. Nxe6 {[%clk 00:37:18]} {[%emt 00:00:39]} Kxe6 {[%clk 00:44:07]} 25. Bg4+
{[%clk 00:37:42]} {[%emt 00:00:26]} Kf6 {[%clk 00:42:36]} 26. Rh3 {[%clk
00:37:22]} {[%emt 00:02:52]} e5 {[%clk 00:41:25]} 27. Rf3+ {[%clk 00:36:49]}
{[%emt 00:02:43]} Nf4 {[%clk 00:41:33]} {[%emt 00:00:23]} 28. Bxc8 {[%clk
00:37:13]} {[%emt 00:00:05]} Rxc8 {[%clk 00:41:40]} {[%emt 00:00:23]} 29. g3
{[%clk 00:37:38]} {[%emt 00:00:06]} bxc3 {[%clk 00:41:48]} {[%emt 00:00:22]} 30.
gxf4 {[%clk 00:37:12]} {[%emt 00:00:55]} cxb2 {[%clk 00:38:29]} {[%emt
00:03:49]} 31. fxe5+ {[%clk 00:36:48]} {[%emt 00:00:54]} Ke6 {[%clk 00:38:28]}
{[%emt 00:00:31]} 32. Qxg6+ {[%clk 00:36:41]} {[%emt 00:00:37]} Kd7 {[%clk
00:30:23]} {[%emt 00:08:35]} 33. Rf7+ {[%clk 00:35:30]} {[%emt 00:01:41]} Kc6
{[%clk 00:30:31]} {[%emt 00:00:23]} 34. Qe4+ {[%clk 00:35:10]} {[%emt
00:00:50]} Kb5 {[%emt 00:02:19]} 35. Qd3+ {[%emt 00:00:59]} Ka4 {[%clk
00:29:05]} {[%emt 00:00:18]} 36. Qd1+ {[%clk 00:34:07]} {[%emt 00:00:53]} 1-0

[Event "Veteran-SM 65+ 2025"]
[Site "Uppsala, Sweden"]
[Date "2025.07.01"]
[Round "4.1"]
[White "Sigeman, Johan"]
[Black "Franchuck, Ivan"]
[Result "1-0"]
[TimeControl "90 min for 40 move + 30 min with an increment of 30 sec starting move 1"]
[WhiteFideId "1705601"]
[BlackFideId "14140187"]
[WhiteElo "2012"]
[BlackElo "2006"]

1. d4 {[%clk 01:30:56]} {[%emt 00:00:03]} Nf6 {[%clk 01:30:47]} {[%emt
00:00:13]} 2. Nf3 {[%clk 01:31:17]} {[%emt 00:00:09]} g6 {[%clk 01:30:47]}
{[%emt 00:00:30]} 3. g3 {[%clk 01:31:34]} {[%emt 00:00:13]} Bg7 {[%clk
01:31:03]} {[%emt 00:00:14]} 4. Bg2 {[%clk 01:31:58]} {[%emt 00:00:06]} d6
{[%clk 01:31:19]} {[%emt 00:00:15]} 5. O-O {[%clk 01:32:11]} {[%emt 00:00:16]}
Nbd7 {[%clk 01:31:35]} {[%emt 00:00:14]} 6. c4 {[%clk 01:32:01]} {[%emt
00:00:40]} O-O {[%clk 01:31:53]} {[%emt 00:00:12]} 7. Nc3 {[%clk 01:32:09]}
{[%emt 00:00:22]} e5 {[%clk 01:32:02]} {[%emt 00:00:21]} 8. e4 {[%clk
01:31:10]} {[%emt 00:01:29]} Re8 {[%clk 01:30:53]} {[%emt 00:01:39]} 9. Re1
{[%clk 01:27:19]} {[%emt 00:04:22]} exd4 {[%clk 01:30:43]} {[%emt 00:00:39]} 10.
Nxd4 {[%clk 01:27:36]} {[%emt 00:00:12]} Nc5 {[%clk 01:30:59]} {[%emt
00:00:16]} 11. h3 {[%clk 01:21:55]} {[%emt 00:06:09]} a5 {[%clk 01:31:00]}
{[%emt 00:00:30]} 12. Rb1 {[%clk 01:21:45]} {[%emt 00:00:41]} c6 {[%clk
01:30:40]} {[%emt 00:00:50]} 13. Nc2 {[%clk 01:13:06]} {[%emt 00:09:08]} Be6
{[%clk 01:28:51]} {[%emt 00:02:18]} 14. Ne3 {[%clk 01:05:47]} {[%emt 00:07:50]}
Qd7 {[%clk 01:28:12]} {[%emt 00:01:09]} 15. Kh2 {[%clk 01:04:34]} {[%emt
00:01:43]} Rad8 {[%clk 01:27:52]} {[%emt 00:00:50]} 16. Qc2 {[%clk 01:00:14]}
{[%emt 00:04:50]} Qc7 {[%clk 01:27:49]} {[%emt 00:00:33]} 17. b3 {[%clk
00:51:50]} {[%emt 00:08:54]} h5 {[%clk 01:25:39]} {[%emt 00:02:39]} 18. Ba3
{[%clk 00:44:12]} {[%emt 00:08:09]} h4 {[%clk 01:24:44]} {[%emt 00:01:25]} 19.
Nf1 {[%clk 00:38:20]} {[%emt 00:06:23]} hxg3+ {[%clk 01:24:45]} {[%emt
00:00:28]} 20. fxg3 {[%clk 00:38:44]} {[%emt 00:00:07]} Ncd7 {[%clk 01:23:08]}
{[%emt 00:02:06]} 21. Ne2 {[%clk 00:37:03]} {[%emt 00:02:12]} Ne5 {[%clk
01:23:03]} {[%emt 00:00:34]} 22. Nf4 {[%clk 00:36:41]} {[%emt 00:00:52]} Bc8
{[%clk 01:23:13]} {[%emt 00:00:20]} 23. Bb2 {[%clk 00:33:38]} {[%emt 00:03:34]}
Nh7 {[%clk 01:23:16]} {[%emt 00:00:26]} 24. Ne3 {[%clk 00:28:18]} {[%emt
00:05:50]} Ng5 {[%clk 01:22:00]} {[%emt 00:01:46]} 25. Rf1 {[%clk 00:28:26]}
{[%emt 00:00:22]} Qe7 {[%clk 01:16:39]} {[%emt 00:05:51]} 26. Rbe1 {[%clk
00:27:20]} {[%emt 00:01:35]} Bf6 {[%clk 01:16:00]} {[%emt 00:01:08]} 27. Nfd5
{[%clk 00:27:11]} {[%emt 00:00:41]} cxd5 {[%clk 01:14:29]} {[%emt 00:02:01]} 28.
Nxd5 {[%clk 00:27:35]} {[%emt 00:00:05]} Qe6 {[%clk 01:14:22]} {[%emt
00:00:38]} 29. Rxf6 {[%clk 00:26:01]} {[%emt 00:02:04]} Nef3+ {[%clk 01:12:43]}
{[%emt 00:02:10]} 30. Kh1 {[%clk 00:09:21]} {[%emt 00:17:10]} Nxe1 {[%clk
01:08:48]} {[%emt 00:04:25]} 31. Qd2 {[%clk 00:08:32]} {[%emt 00:01:19]} Nxe4
{[%clk 01:08:44]} {[%emt 00:00:33]} 32. Qh6 {[%clk 00:07:34]} {[%emt 00:01:28]}
Nxg3+ {[%clk 01:08:13]} {[%emt 00:01:01]} 33. Kh2 {[%clk 00:06:54]} {[%emt
00:01:11]} Qe5 {[%clk 00:57:35]} {[%emt 00:11:07]} 34. Bxe5 {[%clk 00:06:10]}
{[%emt 00:01:14]} Rxe5 {[%clk 00:57:52]} {[%emt 00:00:12]} 35. Kxg3 {[%clk
00:03:12]} {[%emt 00:03:29]} Nxg2 {[%clk 00:57:29]} {[%emt 00:00:52]} 36. Kxg2
{[%clk 00:03:30]} {[%emt 00:00:13]} b5 {[%clk 00:55:40]} {[%emt 00:02:19]} 37.
Rf3 {[%clk 00:03:06]} {[%emt 00:00:55]} Rxd5 {[%clk 00:54:58]} {[%emt
00:01:12]} 38. cxd5 {[%clk 00:03:27]} {[%emt 00:00:08]} Bf5 {[%clk 00:55:07]}
{[%emt 00:00:21]} 39. Rxf5 {[%clk 00:03:47]} {[%emt 00:00:11]} 1-0

[Event "Veteran-SM 65+ 2025"]
[Site "Uppsala, Sweden"]
[Date "2025.07.01"]
[Round "4.2"]
[White "Magnussen, Pal"]
[Black "Marttala, Thomas"]
[Result "1/2-1/2"]
[TimeControl "90 min for 40 move + 30 min with an increment of 30 sec starting move 1"]
[WhiteFideId "1711814"]
[BlackFideId "1701118"]
[WhiteElo "1954"]
[BlackElo "2123"]

1. e4 {[%clk 01:29:01]} {[%emt 00:01:58]} e5 {[%clk 01:30:17]} {[%emt
00:00:43]} 2. Nf3 {[%clk 01:29:04]} {[%emt 00:00:27]} Nc6 {[%emt 00:01:10]} 3.
Bc4 {[%clk 01:28:27]} {[%emt 00:00:06]} Nf6 {[%clk 01:27:53]} {[%emt 00:03:15]}
4. d3 {[%clk 01:28:27]} {[%emt 00:00:31]} Bc5 {[%clk 01:27:39]} {[%emt
00:00:43]} 5. c3 {[%clk 01:28:35]} {[%emt 00:00:22]} d6 {[%clk 01:27:50]}
{[%emt 00:00:20]} 6. O-O {[%clk 01:28:37]} {[%emt 00:00:28]} O-O {[%clk
01:27:59]} {[%emt 00:00:21]} 7. b4 {[%clk 01:24:23]} {[%emt 00:04:44]} Bb6
{[%clk 01:28:21]} {[%emt 00:00:07]} 8. a4 {[%clk 01:24:34]} {[%emt 00:00:19]}
a5 {[%clk 01:28:32]} {[%emt 00:00:19]} 9. b5 {[%clk 01:23:08]} {[%emt
00:01:56]} Ne7 {[%clk 01:21:13]} {[%emt 00:07:50]} 10. Re1 {[%clk 01:21:08]}
{[%emt 00:02:30]} Ng6 {[%clk 01:20:26]} {[%emt 00:01:16]} 11. Nbd2 {[%clk
01:15:53]} {[%emt 00:05:45]} h6 {[%clk 01:08:33]} {[%emt 00:12:23]} 12. Nf1
{[%clk 01:14:13]} {[%emt 00:02:11]} Re8 {[%clk 01:00:48]} {[%emt 00:08:15]} 13.
Bb3 {[%clk 01:10:07]} {[%emt 00:04:36]} c6 {[%clk 00:58:01]} {[%emt 00:03:16]}
14. Bc2 {[%clk 00:56:42]} {[%emt 00:13:55]} d5 {[%clk 00:53:14]} {[%emt
00:05:16]} 15. Be3 {[%clk 00:50:35]} {[%emt 00:06:38]} d4 {[%clk 00:46:10]}
{[%emt 00:07:34]} 16. cxd4 {[%clk 00:49:52]} {[%emt 00:01:13]} exd4 {[%clk
00:46:31]} {[%emt 00:00:09]} 17. Bd2 {[%clk 00:49:26]} {[%emt 00:00:55]} Bc7
{[%clk 00:46:15]} {[%emt 00:00:47]} 18. h3 {[%clk 00:45:39]} {[%emt 00:04:17]}
c5 {[%clk 00:43:08]} {[%emt 00:03:37]} 19. Bb3 {[%clk 00:43:19]} {[%emt
00:02:51]} Be6 {[%clk 00:37:59]} {[%emt 00:05:38]} 20. b6 {[%clk 00:34:40]}
{[%emt 00:09:10]} Bf4 {[%clk 00:33:25]} {[%emt 00:05:03]} 21. Rb1 {[%clk
00:32:56]} {[%emt 00:02:15]} Bxd2 {[%clk 00:28:43]} {[%emt 00:05:12]} 22. Qxd2
{[%clk 00:31:25]} {[%emt 00:02:01]} Ra6 {[%clk 00:26:57]} {[%emt 00:02:15]} 23.
Ng3 {[%clk 00:30:12]} {[%emt 00:01:43]} Bxb3 {[%clk 00:26:17]} {[%emt
00:01:10]} 24. Rxb3 {[%clk 00:30:13]} {[%emt 00:00:30]} Rxb6 {[%clk 00:26:40]}
{[%emt 00:00:06]} 25. Rxb6 {[%clk 00:28:37]} {[%emt 00:02:07]} Qxb6 {[%clk
00:27:02]} {[%emt 00:00:08]} 26. Nf5 {[%clk 00:28:27]} {[%emt 00:00:40]} Qd8
{[%clk 00:23:36]} {[%emt 00:03:55]} 27. g4 {[%clk 00:23:46]} {[%emt 00:05:11]}
Qb8 {[%clk 00:19:21]} {[%emt 00:04:45]} 28. g5 {[%clk 00:19:21]} {[%emt
00:04:56]} hxg5 {[%clk 00:19:36]} {[%emt 00:00:13]} 29. Qxg5 {[%clk 00:18:18]}
{[%emt 00:01:33]} Qf4 {[%clk 00:19:06]} {[%emt 00:01:00]} 30. Qg2 {[%clk
00:17:51]} {[%emt 00:00:57]} Nh5 {[%clk 00:17:51]} {[%emt 00:01:45]} 31. Rb1
{[%clk 00:15:25]} {[%emt 00:02:57]} Qc7 {[%clk 00:15:27]} {[%emt 00:02:54]} 32.
Qg4 {[%clk 00:14:57]} {[%emt 00:00:58]} Nf6 {[%clk 00:15:03]} {[%emt 00:00:54]}
33. Qg5 {[%clk 00:14:05]} {[%emt 00:01:22]} Qf4 {[%clk 00:15:20]} {[%emt
00:00:14]} 34. Qg2 {[%clk 00:14:18]} {[%emt 00:00:16]} c4 {[%clk 00:14:44]}
{[%emt 00:01:07]} 35. N3h4 {[%clk 00:12:55]} {[%emt 00:01:52]} Qc7 {[%clk
00:08:04]} {[%emt 00:07:11]} 36. Rc1 {[%clk 00:10:01]} {[%emt 00:03:24]} c3
{[%clk 00:07:59]} {[%emt 00:00:35]} 37. Nxg6 {[%clk 00:09:45]} {[%emt
00:00:45]} fxg6 {[%clk 00:08:15]} {[%emt 00:00:15]} 38. Qxg6 {[%clk 00:10:05]}
{[%emt 00:00:09]} Rd8 {[%clk 00:07:51]} {[%emt 00:00:54]} 39. e5 {[%clk
00:05:56]} {[%emt 00:04:39]} Nd5 {[%clk 00:08:04]} {[%emt 00:00:17]} 40. e6
{[%clk 00:04:30]} {[%emt 00:01:57]} Nf4 {[%clk 00:07:31]} {[%emt 00:01:02]} 41.
Qg4 {[%clk 00:02:58]} {[%emt 00:02:02]} Nxe6 {[%clk 00:07:13]} {[%emt
00:00:48]} 42. Nh6+ {[%clk 00:01:50]} {[%emt 00:01:38]} Kh7 {[%clk 00:07:30]}
{[%emt 00:00:13]} 43. Qf5+ {[%clk 00:29:52]} {[%emt 00:02:29]} Kxh6 {[%clk
00:35:02]} {[%emt 00:02:58]} 44. Qxe6+ {[%clk 00:30:16]} {[%emt 00:00:06]} g6
{[%clk 00:34:48]} {[%emt 00:00:43]} 45. Qe4 {[%clk 00:30:12]} {[%emt 00:00:33]}
b6 {[%clk 00:34:30]} {[%emt 00:00:49]} 46. Re1 {[%clk 00:28:57]} {[%emt
00:01:44]} Rd7 {[%clk 00:27:23]} {[%emt 00:07:38]} 47. Qh4+ {[%clk 00:27:26]}
{[%emt 00:02:00]} Kg7 {[%clk 00:27:45]} {[%emt 00:00:09]} 48. Re8 {[%clk
00:27:08]} {[%emt 00:00:48]} Kf7 {[%clk 00:26:24]} {[%emt 00:01:51]} 49. Re4
{[%clk 00:22:17]} {[%emt 00:05:21]} Kg7 {[%clk 00:26:05]} {[%emt 00:00:50]} 50.
Re8 {[%clk 00:22:30]} {[%emt 00:00:16]} Kf7 {[%emt 00:00:37]} 1/2-1/2

[Event "Veteran-SM 65+ 2025"]
[Site "Uppsala, Sweden"]
[Date "2025.07.01"]
[Round "4.3"]
[White "Korning, Peter"]
[Black "Andersson, Anders"]
[Result "1-0"]
[TimeControl "90 min for 40 move + 30 min with an increment of 30 sec starting move 1"]
[WhiteFideId "1723332"]
[BlackFideId "1738259"]
[WhiteElo "1944"]
[BlackElo "1991"]

1. e4 {[%clk 01:30:38]} {[%emt 00:00:21]} c5 {[%clk 01:30:11]} {[%emt
00:00:50]} 2. d4 {[%clk 01:30:40]} {[%emt 00:00:28]} cxd4 {[%clk 01:30:23]}
{[%emt 00:00:18]} 3. c3 {[%clk 01:31:04]} {[%emt 00:00:06]} d3 {[%clk
01:29:33]} {[%emt 00:01:19]} 4. Bxd3 {[%clk 01:30:50]} {[%emt 00:00:43]} d6
{[%clk 01:29:22]} {[%emt 00:00:42]} 5. c4 {[%clk 01:31:04]} {[%emt 00:00:17]}
Nf6 {[%clk 01:28:26]} {[%emt 00:01:25]} 6. Nc3 {[%clk 01:30:10]} {[%emt
00:01:24]} g6 {[%clk 01:28:20]} {[%emt 00:00:37]} 7. h3 {[%clk 01:30:30]}
{[%emt 00:00:10]} Bg7 {[%clk 01:28:17]} {[%emt 00:00:33]} 8. Nf3 {[%clk
01:30:43]} {[%emt 00:00:17]} Nc6 {[%clk 01:28:02]} {[%emt 00:00:46]} 9. O-O
{[%clk 01:30:45]} {[%emt 00:00:27]} O-O {[%clk 01:28:10]} {[%emt 00:00:21]} 10.
Be3 {[%clk 01:29:50]} {[%emt 00:01:24]} Bd7 {[%clk 01:26:19]} {[%emt 00:02:23]}
11. Rc1 {[%clk 01:28:29]} {[%emt 00:01:50]} Rc8 {[%clk 01:23:33]} {[%emt
00:03:17]} 12. b3 {[%clk 01:25:23]} {[%emt 00:03:36]} b6 {[%clk 01:14:53]}
{[%emt 00:09:09]} 13. Bb1 {[%clk 01:19:02]} {[%emt 00:06:50]} Re8 {[%clk
01:08:57]} {[%emt 00:06:27]} 14. Qd2 {[%clk 01:16:23]} {[%emt 00:03:09]} Qc7
{[%clk 01:06:25]} {[%emt 00:03:02]} 15. Nd5 {[%clk 01:01:14]} {[%emt 00:15:39]}
Qb7 {[%clk 01:06:02]} {[%emt 00:00:54]} 16. Rfd1 {[%clk 00:55:19]} {[%emt
00:06:25]} Nxd5 {[%clk 01:00:34]} {[%emt 00:05:58]} 17. exd5 {[%clk 00:52:03]}
{[%emt 00:03:45]} Nb8 {[%clk 00:58:55]} {[%emt 00:02:10]} 18. Bd4 {[%clk
00:47:01]} {[%emt 00:05:33]} b5 {[%clk 00:49:10]} {[%emt 00:10:14]} 19. Bxg7
{[%clk 00:46:25]} {[%emt 00:01:05]} Kxg7 {[%clk 00:49:31]} {[%emt 00:00:10]} 20.
Qd4+ {[%clk 00:44:10]} {[%emt 00:02:44]} f6 {[%clk 00:42:42]} {[%emt 00:07:19]}
21. c5 {[%clk 00:39:35]} {[%emt 00:05:05]} dxc5 {[%clk 00:42:26]} {[%emt
00:00:47]} 22. Rxc5 {[%clk 00:39:41]} Rxc5 {[%clk 00:41:30]} {[%emt 00:01:50]}
23. Qxc5 {[%clk 00:40:02]} {[%emt 00:00:09]} Na6 {[%clk 00:37:34]} {[%emt
00:04:26]} 24. Qd4 {[%clk 00:40:01]} {[%emt 00:00:29]} Qc7 {[%clk 00:35:37]}
{[%emt 00:02:28]} 25. Ng5 {[%clk 00:37:57]} {[%emt 00:06:49]} Qc5 {[%clk
00:33:31]} {[%emt 00:03:24]} 26. Ne6+ {[%clk 00:29:32]} {[%emt 00:08:55]} Bxe6
{[%clk 00:33:50]} {[%emt 00:00:13]} 27. dxe6 {[%clk 00:29:47]} {[%emt
00:00:14]} Qxd4 {[%clk 00:33:02]} {[%emt 00:01:18]} 28. Rxd4 {[%clk 00:30:14]}
{[%emt 00:00:03]} Nc5 {[%clk 00:32:57]} {[%emt 00:00:35]} 29. b4 {[%clk
00:27:10]} {[%emt 00:03:34]} Nxe6 {[%clk 00:32:02]} {[%emt 00:01:26]} 30. Rd7
{[%clk 00:27:11]} {[%emt 00:00:28]} a6 {[%clk 00:27:37]} {[%emt 00:04:55]} 31.
Ra7 {[%clk 00:27:13]} {[%emt 00:00:28]} Kf7 {[%clk 00:26:30]} {[%emt 00:01:37]}
32. Rxa6 {[%clk 00:26:52]} {[%emt 00:00:52]} Rc8 {[%clk 00:21:10]} {[%emt
00:05:48]} 33. Be4 {[%clk 00:24:27]} {[%emt 00:02:54]} Rd8 {[%clk 00:18:28]}
{[%emt 00:03:14]} 34. Rb6 {[%clk 00:19:28]} {[%emt 00:05:28]} Rd4 {[%clk
00:17:35]} {[%emt 00:01:25]} 35. Bc2 {[%clk 00:17:35]} {[%emt 00:02:22]} Nc7
{[%clk 00:11:41]} {[%emt 00:06:24]} 36. Rb7 {[%clk 00:16:22]} {[%emt 00:01:42]}
Rd7 {[%clk 00:09:10]} {[%emt 00:03:02]} 37. a4 {[%clk 00:16:01]} {[%emt
00:00:51]} Ke6 {[%clk 00:08:34]} {[%emt 00:01:06]} 38. Bb3+ {[%clk 00:11:12]}
{[%emt 00:05:18]} Kd6 {[%clk 00:07:21]} {[%emt 00:01:44]} 39. axb5 {[%clk
00:10:15]} {[%emt 00:01:27]} Na8 {[%clk 00:05:24]} {[%emt 00:02:27]} 40. Rb8
{[%clk 00:07:26]} {[%emt 00:03:19]} Ra7 {[%clk 00:04:45]} {[%emt 00:01:09]} 41.
b6 {[%clk 00:06:59]} {[%emt 00:00:57]} Ra1+ {[%clk 00:04:45]} {[%emt 00:00:30]}
42. Kh2 {[%clk 00:07:27]} {[%emt 00:00:02]} Kc6 {[%clk 00:02:16]} {[%emt
00:03:00]} 43. Bd5+ {[%clk 00:03:39]} {[%emt 00:04:18]} Kxd5 {[%clk 00:02:11]}
{[%emt 00:00:35]} 44. b7 {[%clk 00:04:00]} {[%emt 00:00:09]} 1-0

[Event "Veteran-SM 65+ 2025"]
[Site "Uppsala, Sweden"]
[Date "2025.07.01"]
[Round "4.4"]
[White "Carlsson, Ingvar"]
[Black "Haggvik, Kjell"]
[Result "1/2-1/2"]
[TimeControl "90 min for 40 move + 30 min with an increment of 30 sec starting move 1"]
[WhiteFideId "1702670"]
[BlackFideId "1776495"]
[WhiteElo "1987"]
[BlackElo "1932"]

1. e4 {[%clk 01:29:53]} {[%emt 00:01:06]} Nf6 {[%clk 01:30:54]} {[%emt
00:00:07]} 2. e5 {[%clk 01:29:41]} {[%emt 00:00:42]} Nd5 {[%clk 01:31:17]}
{[%emt 00:00:08]} 3. Bc4 {[%clk 01:28:25]} {[%emt 00:01:45]} Nb6 {[%clk
01:31:35]} {[%emt 00:00:11]} 4. Bb3 {[%clk 01:28:48]} {[%emt 00:00:07]} d5
{[%clk 01:29:44]} {[%emt 00:02:22]} 5. d4 {[%clk 01:26:47]} {[%emt 00:02:31]}
Bf5 {[%clk 01:29:21]} {[%emt 00:00:53]} 6. Ne2 {[%clk 01:26:47]} {[%emt
00:00:30]} e6 {[%clk 01:29:06]} {[%emt 00:00:45]} 7. Ng3 {[%clk 01:25:21]}
{[%emt 00:01:56]} Bg6 {[%clk 01:29:23]} {[%emt 00:00:14]} 8. h4 {[%clk
01:21:53]} {[%emt 00:03:57]} h6 {[%clk 01:29:09]} {[%emt 00:00:44]} 9. h5
{[%clk 01:22:08]} {[%emt 00:00:15]} Bh7 {[%clk 01:29:34]} {[%emt 00:00:05]} 10.
O-O {[%clk 01:21:01]} {[%emt 00:01:37]} c5 {[%clk 01:29:04]} {[%emt 00:01:01]}
11. dxc5 {[%clk 01:20:56]} {[%emt 00:00:34]} Bxc5 {[%clk 01:29:28]} {[%emt
00:00:07]} 12. Qg4 {[%clk 01:20:55]} {[%emt 00:00:30]} Bf8 {[%clk 01:29:15]}
{[%emt 00:00:43]} 13. Re1 {[%clk 01:09:38]} {[%emt 00:11:46]} Nc6 {[%clk
01:26:48]} {[%emt 00:02:58]} 14. Nd2 {[%clk 01:02:52]} {[%emt 00:07:16]} Qc7
{[%clk 01:21:36]} {[%emt 00:05:42]} 15. Nf3 {[%clk 00:49:35]} {[%emt 00:13:46]}
O-O-O {[%clk 01:14:00]} {[%emt 00:08:07]} 16. Be3 {[%clk 00:47:15]} {[%emt
00:02:49]} g6 {[%clk 01:04:17]} {[%emt 00:10:14]} 17. c4 {[%clk 00:31:21]}
{[%emt 00:16:24]} gxh5 {[%clk 00:55:31]} {[%emt 00:09:16]} 18. Nxh5 {[%clk
00:31:32]} {[%emt 00:00:19]} Bf5 {[%clk 00:55:34]} {[%emt 00:00:27]} 19. Qf4
{[%clk 00:29:52]} {[%emt 00:02:09]} Nxc4 {[%clk 00:52:40]} {[%emt 00:03:24]} 20.
Bxc4 {[%clk 00:29:53]} {[%emt 00:00:30]} dxc4 {[%clk 00:53:01]} {[%emt
00:00:10]} 21. Qxc4 {[%clk 00:29:11]} {[%emt 00:01:12]} Bd3 {[%clk 00:48:33]}
{[%emt 00:04:58]} 22. Qa4 {[%clk 00:23:58]} {[%emt 00:05:27]} b5 {[%clk
00:35:23]} {[%emt 00:13:55]} 23. Qf4 {[%clk 00:23:25]} {[%emt 00:01:01]} Kb8
{[%clk 00:34:25]} {[%emt 00:01:30]} 24. Rac1 {[%clk 00:19:06]} {[%emt
00:04:49]} Qb7 {[%clk 00:34:07]} {[%emt 00:00:48]} 25. a3 {[%emt 00:05:16]} Ne7
{[%clk 00:30:37]} 26. Bc5 {[%clk 00:14:33]} {[%emt 00:04:17]} Nd5 {[%clk
00:27:12]} {[%emt 00:03:56]} 27. Qh4 {[%clk 00:13:13]} {[%emt 00:01:49]} Bxc5
{[%clk 00:26:27]} {[%emt 00:01:15]} 28. Rxc5 {[%clk 00:13:39]} {[%emt
00:00:04]} Rhg8 {[%clk 00:24:13]} {[%emt 00:02:44]} 29. Kh2 {[%clk 00:12:02]}
{[%emt 00:02:04]} Ne7 {[%clk 00:20:25]} {[%emt 00:04:20]} 30. Nf6 {[%clk
00:11:12]} {[%emt 00:01:21]} Nf5 {[%clk 00:20:04]} {[%emt 00:00:51]} 31. Qf4
{[%clk 00:10:33]} {[%emt 00:01:08]} Rh8 {[%clk 00:19:02]} {[%emt 00:01:32]} 32.
Rc3 {[%clk 00:08:59]} {[%emt 00:02:04]} Qb6 {[%clk 00:14:08]} {[%emt 00:05:25]}
33. Kg1 {[%clk 00:08:25]} {[%emt 00:01:03]} a6 {[%clk 00:07:47]} {[%emt
00:06:52]} 34. Rec1 {[%clk 00:07:23]} {[%emt 00:01:32]} Ne7 {[%clk 00:05:01]}
{[%emt 00:03:17]} 35. Rd1 {[%clk 00:05:41]} {[%emt 00:02:11]} Be2 {[%clk
00:04:54]} {[%emt 00:00:37]} 36. Re1 {[%clk 00:05:52]} {[%emt 00:00:19]} Bxf3
{[%clk 00:05:08]} {[%emt 00:00:17]} 37. Qxf3 {[%clk 00:06:18]} {[%emt
00:00:03]} Qb7 {[%clk 00:05:00]} {[%emt 00:00:39]} 38. Ne4 {[%clk 00:06:13]}
{[%emt 00:00:34]} Nf5 {[%clk 00:04:32]} {[%emt 00:00:58]} 39. Kf1 {[%clk
00:05:28]} {[%emt 00:01:15]} Rd4 {[%clk 00:03:04]} {[%emt 00:01:58]} 40. Rd3
{[%clk 00:03:36]} {[%emt 00:02:22]} Rhd8 {[%clk 00:02:28]} {[%emt 00:01:06]} 41.
Rxd4 {[%clk 00:00:37]} {[%emt 00:03:28]} 1/2-1/2